bitfinex-derivatives/quotes_BTCF0:USTF0_20251204
["timestamp","ask_amount","ask_price","bid_price","bid_amount"]
[1764842594491,0.11578032,93556.0,93555.0,0.11917627]
[1764842595382,0.11578032,93556.0,93555.0,0.17630457]
[1764842596291,0.11578032,93556.0,93555.0,0.11917627]
[1764842599289,0.11578032,93556.0,93555.0,0.17630457]
[1764842600194,0.11578032,93556.0,93555.0,0.20312457]
[1764842600486,0.03016032,93556.0,93555.0,0.14599627]
[1764842608107,0.11578032,93556.0,93555.0,0.14599627]
[1764842608807,0.11578032,93556.0,93555.0,0.03308627]
[1764842611003,0.11578032,93556.0,93555.0,0.11917627]
[1764842611913,0.11578032,93556.0,93555.0,0.07221627]
[1764842613515,0.11578032,93556.0,93555.0,0.11917627]
[1764842616610,0.07011032,93556.0,93555.0,0.11917627]
[1764842616819,0.11081032,93556.0,93555.0,0.11917627]
[1764842617308,0.11081032,93556.0,93555.0,0.15739912]
[1764842620903,0.10975032,93556.0,93555.0,0.11917627]
[1764842621998,0.03016032,93556.0,93555.0,0.11917627]
[1764842622201,0.10944032,93556.0,93555.0,0.03308627]
[1764842622399,0.10944032,93556.0,93555.0,0.07131229]
[1764842622615,0.10944032,93556.0,93555.0,0.03308627]
[1764842623011,0.10944032,93556.0,93555.0,0.07376627]
[1764842623314,0.10944032,93556.0,93555.0,0.11468627]
[1764842627413,0.10944032,93556.0,93555.0,0.15291229]
[1764842628715,0.10944032,93556.0,93555.0,0.11468627]
[1764842629622,0.03016032,93556.0,93555.0,0.11468627]
[1764842631324,0.06980032,93556.0,93555.0,0.11468627]
[1764842631726,0.10944032,93556.0,93555.0,0.07376627]
[1764842631926,0.10944032,93556.0,93555.0,0.11468627]
[1764842633122,0.03016032,93556.0,93555.0,0.12537427]
[1764842633328,0.03016032,93556.0,93555.0,0.18265876]
[1764842634127,0.03016032,93556.0,93555.0,0.12537427]
[1764842634324,0.03016032,93556.0,93555.0,0.18265876]
[1764842635327,0.03016032,93556.0,93555.0,0.12537427]
[1764842637538,0.03016032,93556.0,93555.0,0.20159489]
[1764842640445,0.10944032,93556.0,93555.0,0.11468627]
[1764842641535,0.10944032,93556.0,93555.0,0.03308627]
[1764842642738,0.10944032,93556.0,93555.0,0.07376627]
[1764842644846,0.10944032,93556.0,93555.0,0.11468627]
[1764842650149,0.03016032,93556.0,93555.0,0.11468627]
[1764842650350,0.09010032,93556.0,93555.0,0.11468627]
[1764842650948,0.03016032,93556.0,93555.0,0.1529915]
[1764842651552,0.06013032,93556.0,93555.0,0.1529915]
[1764842652250,0.09010032,93556.0,93555.0,0.1529915]
[1764842653544,0.09010032,93556.0,93555.0,0.1120715]
[1764842653743,0.09010032,93556.0,93555.0,0.1506015]
[1764842654251,0.09010032,93556.0,93555.0,0.11229627]
[1764842656147,0.03016032,93556.0,93555.0,0.12298427]
[1764842656558,0.03016032,93556.0,93555.0,0.12361938]
[1764842658057,0.01232,93600.0,93582.0,0.02392]
[1764842658255,0.41123,93597.0,93596.0,0.0426]
[1764842658554,0.11119,93597.0,93596.0,0.08113]
[1764842658758,0.11119,93597.0,93596.0,0.11181805]
[1764842659343,0.11319,93597.0,93596.0,0.11181805]
[1764842659548,0.11319,93597.0,93596.0,0.03068805]
[1764842660056,0.11219,93597.0,93596.0,0.03068805]
[1764842660257,0.12219,93597.0,93596.0,0.03068805]
[1764842660758,0.11719,93597.0,93596.0,0.03068805]
[1764842661059,0.01243,93590.0,93557.0,0.08113]
[1764842661251,0.15093965,93567.0,93566.0,0.08113]
[1764842661560,0.15093965,93576.0,93568.0,0.10505]
[1764842661760,0.18093965,93576.0,93568.0,0.10505]
[1764842662460,0.03,93576.0,93568.0,0.10505]
[1764842662662,0.05757751,93593.0,93585.0,0.08113]
[1764842662856,0.008,93597.0,93596.0,0.08113]
[1764842663060,0.037,93597.0,93596.0,0.08113]
[1764842663863,0.03,93597.0,93596.0,0.08113]
[1764842664160,0.031,93597.0,93596.0,0.08113]
[1764842664557,0.037,93597.0,93596.0,0.08113]
[1764842665162,0.031,93597.0,93596.0,0.08113]
[1764842665462,0.035,93597.0,93596.0,0.08113]
[1764842665659,0.036,93597.0,93596.0,0.08113]
[1764842672669,0.035,93597.0,93596.0,0.08113]
[1764842672869,0.036,93597.0,93596.0,0.08113]
[1764842673666,0.0452,93597.0,93596.0,0.08113]
[1764842673861,0.0544,93597.0,93596.0,0.08113]
[1764842674464,0.0534,93597.0,93596.0,0.08113]
[1764842674661,0.0544,93597.0,93596.0,0.08113]
[1764842675062,0.036,93597.0,93596.0,0.08113]
[1764842675563,0.0452,93597.0,93596.0,0.08113]
[1764842675965,0.0442,93597.0,93596.0,0.08113]
[1764842676268,0.036,93597.0,93596.0,0.08113]
[1764842677769,0.035,93597.0,93596.0,0.08113]
[1764842679666,0.035,93597.0,93596.0,0.0918133]
[1764842680272,0.035,93597.0,93596.0,0.12076987]
[1764842681673,0.05012,93597.0,93596.0,0.11008657]
[1764842681870,0.05012,93597.0,93596.0,0.08113]
[1764842682371,0.05012,93597.0,93596.0,0.11064489]
[1764842682675,0.05012,93597.0,93596.0,0.08113]
[1764842683374,0.05012,93597.0,93596.0,0.1106546]
[1764842686576,0.035,93597.0,93596.0,0.1106546]
[1764842686874,0.035,93597.0,93596.0,0.1213379]
[1764842689882,0.04092,93597.0,93596.0,0.1106546]
[1764842690665,0.035,93597.0,93596.0,0.1106546]
[1764842690867,0.04092,93597.0,93596.0,0.1106546]
[1764842693483,0.04184,93597.0,93596.0,0.1106546]
[1764842693781,0.04684,93597.0,93596.0,0.1106546]
[1764842695177,0.04184,93597.0,93596.0,0.1106546]
[1764842695377,0.034,93597.0,93596.0,0.1106546]
[1764842700680,0.04584,93597.0,93596.0,0.1106546]
[1764842708403,0.04584,93597.0,93596.0,0.14893533]
[1764842708595,0.04584,93597.0,93596.0,0.1106546]
[1764842710997,0.04584,93597.0,93596.0,0.0295246]
[1764842711294,0.434,93597.0,93587.0,0.00016032]
[1764842711494,0.034,93597.0,93587.0,0.00016032]
[1764842712201,0.0576727,93594.0,93587.0,0.00016032]
[1764842712397,0.0876727,93594.0,93587.0,0.00016032]
[1764842712588,0.03,93594.0,93587.0,0.00016032]
[1764842713094,0.03,93594.0,93587.0,0.04234032]
[1764842713297,0.03,93594.0,93587.0,0.08192032]
[1764842713603,0.03,93594.0,93593.0,0.08176]
[1764842714496,0.034,93594.0,93593.0,0.08176]
[1764842714900,0.03,93594.0,93593.0,0.08176]
[1764842715098,0.038,93594.0,93593.0,0.08176]
[1764842716298,0.037,93594.0,93593.0,0.08176]
[1764842716500,0.038,93594.0,93593.0,0.08176]
[1764842718002,0.039,93594.0,93593.0,0.08176]
[1764842718198,0.031,93594.0,93593.0,0.08176]
[1764842718401,0.039,93594.0,93593.0,0.08176]
[1764842718593,0.038,93594.0,93593.0,0.08176]
[1764842718796,0.039,93594.0,93593.0,0.08176]
[1764842729603,0.039,93594.0,93593.0,0.11096289]
[1764842730211,0.03,93594.0,93593.0,0.11096289]
[1764842730410,0.039,93594.0,93593.0,0.11096289]
[1764842730919,0.031,93594.0,93593.0,0.11096289]
[1764842731210,0.038,93594.0,93593.0,0.11096289]
[1764842731812,0.037,93594.0,93593.0,0.11096289]
[1764842732011,0.038,93594.0,93593.0,0.11096289]
[1764842734015,0.031,93594.0,93593.0,0.11096289]
[1764842734204,0.038,93594.0,93593.0,0.11096289]
[1764842734609,0.031,93594.0,93593.0,0.11096289]
[1764842734807,0.038,93594.0,93593.0,0.11096289]
[1764842735211,0.037,93594.0,93593.0,0.11096289]
[1764842735409,0.088,93594.0,93593.0,0.11096289]
[1764842735616,0.088,93594.0,93593.0,0.08176]
[1764842735915,0.01768,93588.0,93587.0,0.03947032]
[1764842736113,0.01768,93577.0,93576.0,0.09924]
[1764842736414,0.04768,93577.0,93576.0,0.09924]
[1764842737519,0.05068,93577.0,93576.0,0.09924]
[1764842738206,0.05368,93577.0,93576.0,0.09924]
[1764842739817,0.05468,93577.0,93576.0,0.09924]
[1764842741923,0.10468,93577.0,93576.0,0.09924]
[1764842742228,0.05468,93577.0,93576.0,0.09924]
[1764842745612,0.02138,93568.0,93567.0,0.07344032]
[1764842745934,0.02138,93568.0,93558.0,0.02188]
[1764842745935,0.06514,93559.0,93558.0,0.07328]
[1764842746115,0.14514,93559.0,93558.0,0.07328]
[1764842746624,0.14514,93559.0,93558.0,0.0374]
[1764842747125,0.13514,93559.0,93558.0,0.07328]
[1764842747424,0.14214,93559.0,93558.0,0.07328]
[1764842747825,0.13614,93559.0,93558.0,0.07328]
[1764842748128,0.078,93559.0,93549.0,0.00016032]
[1764842748426,0.25401037,93559.0,93558.0,0.07328]
[1764842748615,0.10314,93559.0,93558.0,0.07328]
[1764842748817,0.10214,93559.0,93558.0,0.07328]
[1764842749026,0.10314,93559.0,93558.0,0.07328]
[1764842749521,0.10014,93559.0,93558.0,0.07328]
[1764842749826,0.035,93559.0,93558.0,0.07328]
[1764842750117,0.036,93559.0,93558.0,0.07328]
[1764842751015,0.09614,93559.0,93558.0,0.07328]
[1764842751217,0.10014,93559.0,93558.0,0.07328]
[1764842754722,0.15014,93559.0,93558.0,0.07328]
[1764842754927,0.10014,93559.0,93558.0,0.07328]
[1764842755120,0.10014,93559.0,93558.0,0.09552]
[1764842756119,0.245,93559.0,93549.0,0.07344032]
[1764842756319,0.245,93559.0,93549.0,0.00016032]
[1764842756320,0.06514,93550.0,93549.0,0.00016032]
[1764842756522,0.14514,93550.0,93549.0,0.00016032]
[1764842757534,0.06514,93541.0,93540.0,0.09552]
[1764842757737,0.09514,93541.0,93540.0,0.12781305]
[1764842759233,0.14514,93541.0,93540.0,0.09552]
[1764842760429,0.14714,93541.0,93540.0,0.09552]
[1764842761248,0.06514,93535.0,93534.0,0.09552]
[1764842761554,0.07369,93532.0,93531.0,0.00016032]
[1764842761753,0.07369,93532.0,93526.0,0.00026731]
[1764842761754,0.07369,93527.0,93526.0,0.03766731]
[1764842762046,0.15369,93527.0,93526.0,0.06998035]
[1764842762250,0.15369,93527.0,93526.0,0.03766731]
[1764842763047,0.15369,93527.0,93526.0,0.03866731]
[1764842763244,0.15369,93527.0,93526.0,0.00126731]
[1764842763443,0.14369,93527.0,93526.0,0.00226731]
[1764842765053,0.10369,93527.0,93526.0,0.00226731]
[1764842765248,0.15369,93527.0,93526.0,0.00226731]
[1764842765449,0.14369,93527.0,93526.0,0.00226731]
[1764842766655,0.14369,93527.0,93526.0,0.03966731]
[1764842767948,0.16392,93527.0,93526.0,0.00097314]
[1764842768348,0.32392,93527.0,93526.0,0.00097314]
[1764842768652,0.16392,93527.0,93526.0,0.00097314]
[1764842769052,0.07413,93518.0,93517.0,0.00016032]
[1764842769352,0.15413,93518.0,93517.0,0.03601032]
[1764842769553,0.15413,93518.0,93517.0,0.07266032]
[1764842770254,0.15613,93518.0,93517.0,0.00016032]
[1764842770658,0.07413,93496.0,93495.0,0.0645128]
[1764842770852,0.07413,93496.0,93495.0,0.10439839]
[1764842770853,0.10413,93496.0,93495.0,0.10439839]
[1764842771451,0.10413,93496.0,93495.0,0.0725]
[1764842771751,0.15413,93496.0,93495.0,0.001]
[1764842772056,0.31413,93496.0,93495.0,0.005]
[1764842772247,0.14413,93496.0,93495.0,0.005]
[1764842772849,0.15413,93496.0,93495.0,0.005]
[1764842773444,0.15413,93496.0,93495.0,0.001]
[1764842773644,0.15613,93496.0,93495.0,0.001]
[1764842773959,0.24267029,93496.0,93495.0,0.001]
[1764842774154,0.07413,93495.0,93486.0,0.00037462]
[1764842774457,0.31413,93495.0,93486.0,0.00037462]
[1764842775347,0.07413,93487.0,93486.0,0.00037462]
[1764842775544,0.27413,93487.0,93486.0,0.00037462]
[1764842776258,0.27423531,93487.0,93486.0,0.00037462]
[1764842777159,0.07413,93465.0,93464.0,0.09431]
[1764842777460,0.10421416,93465.0,93464.0,0.09431]
[1764842778451,0.10421416,93465.0,93464.0,0.10331]
[1764842780359,0.07413,93451.0,93450.0,0.09431]
[1764842780556,0.10413,93451.0,93450.0,0.09431]
[1764842780757,0.03,93451.0,93450.0,0.09431]
[1764842781061,0.06662,93451.0,93450.0,0.09431]
[1764842781454,0.10413,93451.0,93450.0,0.09631]
[1764842782166,0.10413,93451.0,93450.0,0.04385]
[1764842782364,0.10423531,93451.0,93450.0,0.0805]
[1764842782556,0.10423531,93451.0,93450.0,0.0745]
[1764842782751,0.10423531,93451.0,93450.0,0.10231]
[1764842783073,0.10423531,93451.0,93450.0,0.10131]
[1764842784165,0.03010531,93451.0,93450.0,0.10131]
[1764842785366,0.05,93461.0,93460.0,0.0725]
[1764842785562,0.03,93461.0,93460.0,0.0725]
[1764842786561,0.03,93461.0,93460.0,0.0735]
[1764842787760,0.032,93461.0,93460.0,0.0735]
[1764842788765,0.032,93461.0,93460.0,0.10329298]
[1764842789758,0.05,93471.0,93470.0,0.0725]
[1764842789970,0.00016041,93474.0,93473.0,0.0725]
[1764842790165,0.03016041,93474.0,93473.0,0.0725]
[1764842790670,0.03016041,93474.0,93473.0,0.10230588]
[1764842791659,0.11029041,93474.0,93473.0,0.10330588]
[1764842792065,0.10429041,93474.0,93473.0,0.10230588]
[1764842792268,0.10929041,93474.0,93473.0,0.10230588]
[1764842792565,0.11029041,93474.0,93473.0,0.10230588]
[1764842793475,0.10929041,93474.0,93473.0,0.10230588]
[1764842793772,0.10729041,93474.0,93473.0,0.10230588]
[1764842794366,0.03316041,93474.0,93473.0,0.10230588]
[1764842794682,0.10977041,93474.0,93473.0,0.10230588]
[1764842796575,0.10977041,93474.0,93473.0,0.13096868]
[1764842797370,0.10977041,93474.0,93473.0,0.10230588]
[1764842800467,0.03316041,93474.0,93473.0,0.10230588]
[1764842801164,0.05,93484.0,93483.0,0.0865662]
[1764842801368,0.09993,93498.0,93497.0,0.07587]
[1764842801569,0.12993,93498.0,93497.0,0.10567588]
[1764842802478,0.12993,93498.0,93497.0,0.02980588]
[1764842804382,0.13193,93498.0,93497.0,0.02980588]
[1764842804786,0.13893,93498.0,93497.0,0.02980588]
[1764842806478,0.18893,93498.0,93497.0,0.02980588]
[1764842807176,0.13893,93498.0,93497.0,0.02980588]
[1764842807479,0.18893,93498.0,93497.0,0.02980588]
[1764842807679,0.13893,93498.0,93497.0,0.02980588]
[1764842807885,0.11541,93498.0,93497.0,0.10567588]
[1764842808273,0.11541,93498.0,93497.0,0.13445017]
[1764842808586,0.11541,93498.0,93497.0,0.10567588]
[1764842810179,0.039,93498.0,93497.0,0.1440416]
[1764842810481,0.039,93498.0,93497.0,0.10567588]
[1764842810690,0.039,93498.0,93497.0,0.1440416]
[1764842811390,0.039,93498.0,93497.0,0.10567588]
[1764842812575,0.11541,93498.0,93497.0,0.10567588]
[1764842813197,0.11541,93498.0,93497.0,0.13442705]
[1764842813379,0.11541,93498.0,93497.0,0.10567588]
[1764842813980,0.11541,93498.0,93497.0,0.05856382]
[1764842814182,0.11541,93498.0,93497.0,0.02980588]
[1764842814379,0.11541,93498.0,93497.0,0.05856382]
[1764842814580,0.11541,93498.0,93497.0,0.02980588]
[1764842814775,0.11541,93498.0,93497.0,0.09723382]
[1764842815177,0.11541,93498.0,93497.0,0.06847588]
[1764842815876,0.11541,93498.0,93497.0,0.10567588]
[1764842816302,0.11541,93498.0,93497.0,0.13443236]
[1764842816689,0.11541,93498.0,93497.0,0.10567588]
[1764842816886,0.039,93498.0,93497.0,0.10567588]
[1764842817493,0.07609,93498.0,93497.0,0.10567588]
[1764842817791,0.11541,93498.0,93497.0,0.10567588]
[1764842819391,0.11541,93498.0,93497.0,0.13443867]
[1764842819990,0.11541,93498.0,93497.0,0.10567588]
[1764842820190,0.11541,93498.0,93497.0,0.13444188]
[1764842820387,0.11541,93498.0,93497.0,0.10567588]
[1764842821995,0.11541,93498.0,93497.0,0.13444307]
[1764842822391,0.11541,93498.0,93497.0,0.10567588]
[1764842826197,0.11275,93498.0,93497.0,0.10567588]
[1764842826399,0.11275,93498.0,93497.0,0.13444307]
[1764842826792,0.11275,93498.0,93497.0,0.13445039]
[1764842827293,0.11275,93498.0,93497.0,0.10567588]
[1764842827493,0.11275,93498.0,93497.0,0.13445488]
[1764842827898,0.11275,93498.0,93497.0,0.10567588]
[1764842828491,0.11275,93498.0,93497.0,0.13445488]
[1764842830203,0.11275,93498.0,93497.0,0.10567588]
[1764842831000,0.11275,93498.0,93497.0,0.13445488]
[1764842831694,0.039,93498.0,93497.0,0.10567588]
[1764842833206,0.0776,93498.0,93497.0,0.10567588]
[1764842833504,0.11426,93498.0,93497.0,0.10567588]
[1764842835598,0.13604,93498.0,93497.0,0.10567588]
[1764842836305,0.13604,93498.0,93497.0,0.13446809]
[1764842836507,0.13604,93498.0,93497.0,0.10567588]
[1764842839798,0.13604,93498.0,93497.0,0.02980588]
[1764842840307,0.13604,93498.0,93497.0,0.10391588]
[1764842840502,0.13604,93498.0,93497.0,0.06762588]
[1764842841301,0.13604,93498.0,93497.0,0.02980588]
[1764842842502,0.13604,93498.0,93497.0,0.10391588]
[1764842843412,0.13604,93498.0,93497.0,0.02980588]
[1764842844507,0.13604,93498.0,93497.0,0.06762588]
[1764842845116,0.13604,93498.0,93497.0,0.02980588]
[1764842846119,0.13604,93498.0,93497.0,0.10391588]
[1764842847107,0.039,93498.0,93497.0,0.10391588]
[1764842848112,0.039,93498.0,93497.0,0.16146446]
[1764842848313,0.0776,93498.0,93497.0,0.10391588]
[1764842848514,0.039,93498.0,93497.0,0.1615258]
[1764842851419,0.0776,93498.0,93497.0,0.10391588]
[1764842851613,0.0776,93498.0,93497.0,0.1615258]
[1764842851821,0.11426,93498.0,93497.0,0.10391588]
[1764842853415,0.13604,93498.0,93497.0,0.10391588]
[1764842861418,0.13604,93498.0,93497.0,0.14230415]
[1764842861726,0.13604,93498.0,93497.0,0.0848046]
[1764842864128,0.03884009,93498.0,93497.0,0.0848046]
[1764842864328,0.03884009,93498.0,93497.0,0.14241452]
[1764842864534,0.03884009,93498.0,93497.0,0.0848046]
[1764842865430,0.03184009,93498.0,93497.0,0.0888046]
[1764842865933,0.02984009,93498.0,93497.0,0.0888046]
[1764842866124,0.03084009,93498.0,93497.0,0.0888046]
[1764842866623,0.06375009,93498.0,93497.0,0.0888046]
[1764842867932,0.11820009,93498.0,93497.0,0.0888046]
[1764842869333,0.11820009,93498.0,93497.0,0.14636462]
[1764842870234,0.11820009,93498.0,93497.0,0.0888046]
[1764842871135,0.11820009,93498.0,93497.0,0.07811]
[1764842872347,0.06672,93497.0,93496.0,3.99e-06]
[1764842872635,0.06672,93489.0,93488.0,0.0001605]
[1764842872825,0.09672,93489.0,93488.0,0.0001605]
[1764842873826,0.09772,93489.0,93488.0,0.0001605]
[1764842874227,0.09672,93489.0,93488.0,0.0001605]
[1764842874539,0.09972,93489.0,93488.0,0.0011605]
[1764842874738,0.14972,93489.0,93488.0,0.0011605]
[1764842875237,0.10072,93489.0,93488.0,0.0011605]
[1764842875431,0.15072,93489.0,93488.0,0.0011605]
[1764842875640,0.10072,93489.0,93488.0,0.0011605]
[1764842878239,0.15072,93489.0,93488.0,0.0011605]
[1764842878441,0.15072,93489.0,93488.0,5e-07]
[1764842878747,0.14072,93489.0,93488.0,5e-07]
[1764842878930,0.15072,93489.0,93488.0,5e-07]
[1764842880132,0.10072,93489.0,93488.0,5e-07]
[1764842880333,0.15072,93489.0,93488.0,5e-07]
[1764842880537,0.10072,93489.0,93488.0,5e-07]
[1764842880749,0.10072,93489.0,93488.0,0.0678405]
[1764842881439,0.10072,93489.0,93488.0,0.0335105]
[1764842881642,0.034,93489.0,93488.0,5e-07]
[1764842882443,0.10072,93489.0,93488.0,0.0335105]
[1764842883638,0.034,93489.0,93488.0,5e-07]
[1764842885446,0.074,93489.0,93488.0,5e-07]
[1764842885643,0.084,93489.0,93488.0,5e-07]
[1764842887339,0.034,93489.0,93488.0,5e-07]
[1764842888034,0.10214,93489.0,93488.0,0.0645105]
[1764842888447,0.034,93489.0,93488.0,0.0645105]
[1764842889231,0.06868,93489.0,93488.0,0.0645105]
[1764842889642,0.10214,93489.0,93488.0,0.0645105]
[1764842890036,0.034,93489.0,93488.0,0.0645105]
[1764842896353,0.034,93489.0,93488.0,0.10284514]
[1764842897046,0.10214,93489.0,93488.0,0.10284514]
[1764842897241,0.10214,93489.0,93488.0,0.0645105]
[1764842900057,0.10214,93489.0,93488.0,0.10285864]
[1764842900358,0.10214,93489.0,93488.0,0.0645105]
[1764842903860,0.034,93489.0,93488.0,0.0645105]
[1764842904162,0.10214,93489.0,93488.0,0.0645105]
[1764842906458,0.034,93489.0,93488.0,0.0645105]
[1764842906760,0.0335275,93489.0,93488.0,0.0645105]
[1764842908356,0.0305275,93489.0,93488.0,0.06451]
[1764842908556,0.0325275,93489.0,93488.0,0.06551]
[1764842908866,0.0315275,93489.0,93488.0,0.06551]
[1764842912763,0.01965,93516.0,93506.0,0.06451]
[1764842912959,0.0301605,93507.0,93506.0,0.06451]
[1764842913162,0.0648405,93507.0,93506.0,0.06451]
[1764842913363,0.0648405,93507.0,93506.0,0.0752036]
[1764842913762,0.0983005,93507.0,93506.0,0.0752036]
[1764842914363,0.0301605,93507.0,93506.0,0.0752036]
[1764842914758,0.0321605,93507.0,93506.0,0.0752036]
[1764842914967,0.0381605,93507.0,93506.0,0.0762036]
[1764842915655,0.0361605,93507.0,93506.0,0.0762036]
[1764842915862,0.0361605,93507.0,93506.0,0.0772036]
[1764842916164,0.0311605,93507.0,93506.0,0.0822036]
[1764842916364,0.0311605,93507.0,93506.0,0.13967396]
[1764842916569,0.0301605,93507.0,93506.0,0.13267396]
[1764842916769,0.0311605,93507.0,93506.0,0.13967396]
[1764842917171,0.0943705,93507.0,93506.0,0.13967396]
[1764842917873,0.0943705,93507.0,93506.0,0.007]
[1764842918561,0.0943705,93507.0,93506.0,0.04139]
[1764842919162,0.0943705,93507.0,93506.0,0.007]
[1764842919574,0.0943705,93507.0,93506.0,0.006]
[1764842919773,0.08069,93504.0,93503.0,0.08340263]
[1764842919971,0.11069,93504.0,93503.0,0.08340263]
[1764842920372,0.11069,93504.0,93503.0,0.11287263]
[1764842922064,0.11169,93504.0,93503.0,0.11287263]
[1764842923782,0.11169,93504.0,93503.0,0.08340263]
[1764842924168,0.11169,93504.0,93503.0,0.02852021]
[1764842924366,0.11169,93504.0,93503.0,0.06685428]
[1764842924562,0.11169,93504.0,93503.0,0.02852021]
[1764842924974,0.11169,93504.0,93503.0,0.05727021]
[1764842925174,0.11169,93504.0,93503.0,0.09560428]
[1764842925969,0.11169,93504.0,93503.0,0.13593818]
[1764842926370,0.11169,93504.0,93503.0,0.09760411]
[1764842926667,0.09421,93504.0,93503.0,0.09760411]
[1764842927462,0.09321,93504.0,93503.0,0.09760411]
[1764842928363,0.09321,93504.0,93503.0,0.09960411]
[1764842928872,0.09421,93504.0,93503.0,0.10060411]
[1764842938595,0.09421,93504.0,93503.0,0.10062001]
[1764842941090,0.09421,93504.0,93503.0,0.08908621]
[1764842941285,0.09421,93504.0,93501.0,0.03837545]
[1764842941481,0.05646,93501.0,93500.0,0.02878739]
[1764842941786,0.08646,93501.0,93500.0,0.02878739]
[1764842942191,0.05646,93500.0,93498.0,0.02878739]
[1764842942390,0.05646,93499.0,93498.0,0.02878739]
[1764842942589,0.08646,93499.0,93498.0,0.02878739]
[1764842943295,0.05646,93497.0,93496.0,0.02878739]
[1764842943599,0.08646,93497.0,93496.0,0.02878739]
[1764842944799,0.08846,93497.0,93496.0,0.02978739]
[1764842945191,0.08846,93497.0,93496.0,0.001]
[1764842950402,0.08846,93497.0,93485.0,0.03837545]
[1764842950403,0.05764,93486.0,93485.0,0.02878739]
[1764842950593,0.08764,93486.0,93485.0,0.02878739]
[1764842950801,0.05764,93471.0,93470.0,0.03837545]
[1764842950992,0.05764,93469.0,93465.0,0.09670545]
[1764842951194,0.05764,93466.0,93465.0,0.05833]
[1764842951389,0.08764,93466.0,93465.0,0.05833]
[1764842951794,0.08764,93466.0,93465.0,0.06938466]
[1764842952693,0.08764,93466.0,93465.0,0.01105466]
[1764842952894,0.03,93466.0,93458.0,0.05833]
[1764842953199,0.05764,93459.0,93458.0,0.05833]
[1764842953504,0.08764,93459.0,93458.0,0.06954421]
[1764842954092,0.08764,93459.0,93458.0,0.07154421]
[1764842954603,0.08864,93459.0,93458.0,0.07354421]
[1764842954796,0.08864,93459.0,93458.0,0.01521421]
[1764842955306,0.08864,93459.0,93458.0,0.01621421]
[1764842955908,0.08864,93459.0,93458.0,0.005]
[1764842956110,0.05764,93447.0,93439.0,0.03837545]
[1764842956302,0.08764,93447.0,93446.0,0.02852754]
[1764842956608,0.08764,93447.0,93446.0,0.03980642]
[1764842957509,0.08864,93447.0,93446.0,0.07687642]
[1764842957808,0.08864,93447.0,93446.0,0.00726754]
[1764842958610,0.08864,93447.0,93446.0,0.00926754]
[1764842961609,0.08864,93447.0,93446.0,0.03752754]
[1764842961811,0.08864,93447.0,93446.0,0.06759754]
[1764842962729,0.08864,93447.0,93446.0,0.03752754]
[1764842963016,0.08864,93447.0,93446.0,0.06759754]
[1764842966913,0.031,93447.0,93446.0,0.06759754]
[1764842970114,0.0001605,93456.0,93455.0,0.0690294]
[1764842970325,0.0301605,93456.0,93455.0,0.0690294]
[1764842971618,0.0311605,93456.0,93455.0,0.0740294]
[1764842973022,0.0311605,93456.0,93455.0,0.0730294]
[1764842973916,0.0596905,93456.0,93455.0,0.0730294]
[1764842974112,0.0902705,93456.0,93455.0,0.11126334]
[1764842975129,0.05,93466.0,93465.0,0.0714383]
[1764842975329,0.09807,93476.0,93475.0,0.071437]
[1764842975537,0.08807,93476.0,93475.0,0.071437]
[1764842976742,0.09307,93476.0,93475.0,0.072437]
[1764842977826,0.09407,93476.0,93475.0,0.072437]
[1764842982628,0.036,93476.0,93475.0,0.072437]
[1764842983141,0.006,93476.0,93475.0,0.072437]
[1764842985745,0.09007,93506.0,93505.0,0.06174]
[1764842986039,0.10846,93506.0,93505.0,0.06174]
[1764842986929,0.10646,93506.0,93505.0,0.06174]
[1764842987142,0.10846,93506.0,93505.0,0.06174]
[1764842987336,0.10846,93506.0,93505.0,0.07280173]
[1764842988544,0.10746,93506.0,93505.0,0.07380173]
[1764842989438,0.10746,93506.0,93505.0,0.002]
[1764842990947,0.10746,93506.0,93505.0,0.01325791]
[1764842991137,0.10746,93506.0,93505.0,0.002]
[1764842991937,0.08907,93506.0,93505.0,0.07607266]
[1764842992139,0.08907,93506.0,93505.0,0.06507]
[1764842992845,0.08907,93506.0,93505.0,0.07633012]
[1764842994242,0.10746,93506.0,93505.0,0.07633012]
[1764842995155,0.08907,93506.0,93505.0,0.07633012]
[1764842996634,0.031,93506.0,93505.0,0.07633012]
[1764843004352,0.001,93506.0,93505.0,0.07633012]
[1764843004652,0.031,93506.0,93505.0,0.07633012]
[1764843004852,0.06257,93506.0,93505.0,0.07633012]
[1764843005050,0.031,93506.0,93505.0,0.07633012]
[1764843007250,0.09083,93506.0,93505.0,0.07633012]
[1764843007455,0.09083,93506.0,93505.0,0.05151231]
[1764843007456,0.10867,93506.0,93505.0,0.05151231]
[1764843007655,0.10867,93506.0,93505.0,0.01326012]
[1764843008958,0.10767,93506.0,93505.0,0.01126012]
[1764843009162,0.10867,93506.0,93505.0,0.002]
[1764843009551,0.10867,93506.0,93505.0,0.01281735]
[1764843010553,0.10867,93506.0,93505.0,0.07215735]
[1764843010753,0.031,93506.0,93505.0,0.07215735]
[1764843011848,0.06257,93506.0,93505.0,0.07215735]
[1764843013057,0.09083,93506.0,93505.0,0.07215735]
[1764843013255,0.10867,93506.0,93505.0,0.01281735]
[1764843020468,0.09083,93506.0,93505.0,0.07215735]
[1764843020652,0.031,93506.0,93505.0,0.07215735]
[1764843020856,0.031,93506.0,93505.0,0.11050374]
[1764843021054,0.001,93506.0,93505.0,0.07215735]
[1764843021258,0.0001605,93515.0,93514.0,0.05934]
[1764843021561,0.0301605,93515.0,93514.0,0.0700327]
[1764843022066,0.0001605,93515.0,93514.0,0.1275428]
[1764843022454,0.01784,93541.0,93525.0,0.0106914]
[1764843022663,0.09009731,93526.0,93525.0,0.09878423]
[1764843022862,0.03026731,93526.0,93525.0,0.09878423]
[1764843023262,0.06183731,93526.0,93525.0,0.09878423]
[1764843023576,0.09009731,93526.0,93525.0,0.09878423]
[1764843023767,0.09009731,93526.0,93525.0,0.0700314]
[1764843024269,0.09009731,93526.0,93525.0,0.09877736]
[1764843026470,0.09009731,93526.0,93525.0,0.0700314]
[1764843030873,0.03026731,93526.0,93525.0,0.0700314]